lending/lending_fUSD_20240411
["ID","MTS","AMOUNT","RATE_DAILY","PERIOD"]
[322114251,1712795438826,-338.11762453,0.00022,2]
[322114252,1712795438836,-562.65039884,0.00022,2]
[322114253,1712795438849,-282.16237035,0.00022,2]
[322114254,1712795438858,-40051.28369038,0.00022,2]
[322114255,1712795438867,-186.06693081,0.00022101,2]
[322114256,1712795438877,-152.37881586,0.00022201,2]
[322114257,1712795438887,-180.0,0.00022301,2]
[322114258,1712795438896,-175.8,0.00022323,2]
[322114259,1712795438905,-157.041109,0.00022495,4]
[322114260,1712795438915,-10000.0,0.00022805,2]
[322114261,1712795438927,-189.122,0.00022865,2]
[322114262,1712795438938,-152.3788155,0.00022868,2]
[322114263,1712795438947,-157.041109,0.00022995,4]
[322114264,1712795438957,-155.0,0.00023,2]
[322114265,1712795438966,-155.0,0.00023,2]
[322114266,1712795438975,-307.07035254,0.00023,2]
[322114267,1712795438984,-300.0,0.00023,3]
[322114268,1712795438993,-155.39659709,0.00023109,2]
[322114269,1712795439002,-1471.26976529,0.00023456,2]
[322114270,1712795439012,-157.041109,0.00023495,4]
[322114271,1712795439021,-152.3788155,0.00023535,2]
[322114272,1712795439030,-19460.06407151,0.000237,2]
[322114273,1712795439040,-175.8,0.00023798,2]
[322114274,1712795439050,-600.58,0.00023803,2]
[322114275,1712795439060,-320.7221868,0.00023818,2]
[322114276,1712795439070,-11398.93849241,0.0002382,2]
[322114277,1712795439079,-1980.83801823,0.0002382,2]
[322114278,1712795439088,-155.39659709,0.00023945,2]
[322114279,1712795439097,-157.041109,0.00023995,4]
[322114280,1712795439107,-224.62727988,0.00024,2]
[322114281,1712795439116,-1000.0,0.000241,2]
[322114282,1712795439127,-1000.0,0.00024134,2]
[322114283,1712795439136,-152.3788155,0.00024202,2]
[322114284,1712795439147,-2724.79,0.00024303,2]
[322114285,1712795439157,-157.041109,0.00024495,4]
[322114286,1712795439166,-6683.81639715,0.000246,2]
[322114287,1712795439176,-500.0,0.00024658,2]
[322114288,1712795439186,-19656.99646871,0.0002469,5]
[322114289,1712795439200,-771.41111166,0.0002469,5]
[322114290,1712795439212,-6198.71671646,0.0002469,5]
[322114325,1712795439962,-4763.86367803,0.00022805,2]
[322114334,1712795440105,-2402.93347197,0.0002469,5]
[322114340,1712795442964,-22059.09919315,0.0002469,5]
[322114341,1712795442974,-2208.84501361,0.0002469,2]
[322114342,1712795442983,-155.39659709,0.00024782,2]
[322114343,1712795442992,-2223.73711434,0.000248,2]
[322114344,1712795443002,-152.3788155,0.00024869,2]
[322114345,1712795443011,-1000.0,0.000249,2]
[322114346,1712795443021,-6700.0,0.000249,9]
[322114347,1712795443031,-157.041109,0.00024995,4]
[322114348,1712795443042,-2603.52703539,0.00025,2]
[322114349,1712795443051,-155.0,0.00025,2]
[322114350,1712795443061,-350.0,0.00025,3]
[322114351,1712795443070,-400.0,0.00025,2]
[322114352,1712795443080,-10257.0,0.00025125,3]
[322114353,1712795443090,-20000.0,0.00025126,3]
[322114354,1712795443099,-1945.0,0.00025178,2]
[322114355,1712795443108,-607.0,0.00025178,2]
[322114356,1712795443117,-812.723,0.00025178,2]
[322114357,1712795443127,-280.926,0.00025178,2]
[322114358,1712795443136,-435.0,0.00025178,2]
[322114359,1712795443146,-1140.0,0.00025178,2]
[322114360,1712795443155,-1470.0,0.00025178,2]
[322114361,1712795443164,-152.655,0.00025178,2]
[322114362,1712795443174,-398.0,0.00025178,2]
[322114363,1712795443183,-3039.0,0.00025178,2]
[322114364,1712795443193,-1635.0,0.00025178,2]
[322114365,1712795443202,-2437.0,0.00025178,2]
[322114366,1712795443212,-442.0,0.00025178,2]
[322114367,1712795443221,-215.0,0.00025178,2]
[322114368,1712795443230,-446.844,0.00025178,2]
[322114369,1712795443239,-5711.0,0.00025178,2]
[322114370,1712795443248,-4796.0,0.00025178,2]
[322114371,1712795443258,-1389.0,0.00025178,2]
[322114372,1712795443268,-973.52,0.00025178,2]
[322114373,1712795443277,-460.0,0.00025178,2]
[322114374,1712795443285,-1437.972,0.00025178,2]
[322114375,1712795443296,-2288.0,0.00025178,2]
[322114376,1712795443305,-37570.0,0.00025178,2]
[322114377,1712795443313,-2463.0,0.00025178,2]
[322114378,1712795443322,-540.0,0.00025178,2]
[322114379,1712795443331,-175.8,0.00025272,2]
[322114380,1712795443340,-150.0,0.000254,2]
[322114381,1712795443349,-1000.0,0.000254,2]
[322114382,1712795443358,-1428.03850904,0.00025424,2]
[322114383,1712795443367,-200.0,0.00025428,2]
[322114384,1712795443377,-157.041109,0.00025495,5]
[322114385,1712795443386,-152.3788155,0.00025536,2]
[322114386,1712795443395,-1228.0,0.00025544,2]
[322114387,1712795443404,-155.39659709,0.00025618,2]
[322114388,1712795443413,-1428.03850904,0.00025629,2]
[322114389,1712795443422,-158.89767585,0.0002574,2]
[322114390,1712795443431,-213.0,0.00025899,2]
[322114391,1712795443440,-150.0,0.000259,2]
[322114392,1712795443449,-10100.0,0.000259,9]
[322114393,1712795443458,-1000.0,0.000259,2]
[322114394,1712795443467,-800.0,0.00025973,2]
[322114395,1712795443476,-157.041109,0.00025995,4]
[322114396,1712795443486,-14061.65239236,0.00025998,2]
[322114397,1712795443496,-203.0,0.00025998,2]
[322114398,1712795443505,-263.4025669,0.00025999,2]
[322114399,1712795443514,-2250.40915644,0.00025999,2]
[322114400,1712795443523,-441645.07044806,0.00026,2]
[322114401,1712795443532,-2000.0,0.00026,2]
[322114402,1712795443543,-200.0,0.00026,2]
[322114403,1712795443552,-394.0,0.00026,2]
[322114404,1712795443561,-364.99752473,0.00026,2]
[322114405,1712795443570,-287.80437565,0.00026,2]
[322114406,1712795443580,-2000.0,0.00026,2]
[322114407,1712795443589,-200.0,0.00026,2]
[322114408,1712795443598,-1780.89024,0.00026,2]
[322114409,1712795443608,-515.30094717,0.00026003,2]
[322114410,1712795443617,-1296.3899761,0.00026003,2]
[322114411,1712795443626,-3931.0699805,0.00026003,2]
[322114412,1712795443636,-2105.6696925,0.00026003,2]
[322114413,1712795443645,-28942.1641528,0.00026003,2]
[322114414,1712795443655,-8510.9151777,0.00026003,2]
[322114415,1712795443664,-2259.8584935,0.00026003,2]
[322114416,1712795443674,-922.8159674,0.00026003,2]
[322114417,1712795443683,-46766.3607142,0.00026021,2]
[322114418,1712795443693,-600.58,0.00026067,2]
[322114419,1712795443702,-2569.35534544,0.00026147,2]
[322114420,1712795443711,-152.3788155,0.00026203,2]
[322114421,1712795443721,-1428.03850905,0.00026209,2]
[322114422,1712795443730,-2000.0,0.0002626,2]
[322114423,1712795443740,-200.0,0.0002626,2]
[322114424,1712795443749,-2000.0,0.0002626,2]
[322114425,1712795443759,-200.0,0.0002626,2]
[322114426,1712795443768,-150.0,0.000264,2]
[322114427,1712795443777,-1000.0,0.000264,2]
[322114428,1712795443787,-155.39659709,0.00026455,2]
[322114429,1712795443797,-157.041109,0.00026495,5]
[322114430,1712795443807,-2000.0,0.00026523,2]
[322114431,1712795443817,-200.0,0.00026523,2]
[322114432,1712795443826,-2000.0,0.00026523,2]
[322114433,1712795443836,-200.0,0.00026523,2]
[322114434,1712795443848,-1000.0,0.00026548,2]
[322114435,1712795443858,-1000.0,0.00026759,2]
[322114436,1712795443867,-2000.0,0.00026788,2]
[322114437,1712795443877,-200.0,0.00026788,2]
[322114438,1712795443886,-2000.0,0.00026788,2]
[322114439,1712795443897,-200.0,0.00026788,2]
[322114440,1712795443908,-1780.89025,0.0002686,2]
[322114441,1712795443918,-152.3788155,0.0002687,2]
[322114442,1712795443929,-6683.81639715,0.000269,2]
[322114443,1712795443939,-150.0,0.000269,2]
[322114444,1712795443950,-1000.0,0.000269,2]
[322114445,1712795443960,-320.7221868,0.00026938,2]
[322114446,1712795443969,-11398.93849241,0.0002694,2]
[322114447,1712795443978,-1980.83801823,0.0002694,2]
[322114448,1712795443989,-157.041108,0.00026995,5]
[322114449,1712795443998,-322.74,0.00026997,2]
[322114450,1712795444008,-1000.0,0.00027,2]
[322114451,1712795444019,-400.0,0.00027,3]
[322114452,1712795444030,-160.33,0.00027028,2]
[322114453,1712795444041,-2000.0,0.00027056,2]
[322114454,1712795444051,-200.0,0.00027056,2]
[322114455,1712795444060,-2000.0,0.00027056,2]
[322114456,1712795444070,-200.0,0.00027056,2]
[322114457,1712795444079,-1000.0,0.000271,2]
[322114458,1712795444089,-155.39659709,0.00027291,2]
[322114459,1712795444098,-150.0,0.00027296,2]
[322114460,1712795444107,-1000.0,0.000273,2]
[322114461,1712795444116,-351.88,0.00027397,2]
[322114462,1712795444126,-156.14,0.00027397,2]
[322114463,1712795444135,-285.44,0.00027397,2]
[322114464,1712795444144,-1000.0,0.000274,2]
[322114465,1712795444154,-150.0,0.000274,2]
[322114466,1712795444163,-150.0,0.00027434,2]
[322114467,1712795444172,-150.0,0.00027474,2]
[322114468,1712795444181,-157.041109,0.00027495,6]
[322114469,1712795444190,-1000.0,0.000275,2]
[322114470,1712795444200,-152.3788155,0.00027537,2]
[322114471,1712795444209,-150.0,0.00027613,2]
[322114472,1712795444218,-200.0,0.00027726,2]
[322114473,1712795444227,-1000.0,0.00027726,8]
[322114474,1712795444236,-150.0,0.00027856,2]
[322114475,1712795444246,-150.0,0.00027863,2]
[322114476,1712795444255,-150.0,0.000279,2]
[322114477,1712795444264,-1242.0,0.000279,2]
[322114478,1712795444274,-157.041108,0.00027995,4]
[322114479,1712795444283,-1000.0,0.00028,2]
[322114480,1712795444292,-1000.0,0.00028,2]
[322114481,1712795444301,-150.0,0.00028065,2]
[322114482,1712795444310,-1780.89025,0.0002811,2]
[322114483,1712795444319,-155.39659709,0.00028127,2]
[322114484,1712795444327,-1945.0,0.00028178,2]
[322114485,1712795444337,-607.0,0.00028178,2]
[322114486,1712795444346,-806.0,0.00028178,2]
[322114487,1712795444355,-280.0,0.00028178,2]
[322114488,1712795444365,-435.0,0.00028178,2]
[322114489,1712795444375,-1140.0,0.00028178,2]
[322114490,1712795444386,-1470.0,0.00028178,2]
[322114491,1712795444395,-150.0,0.00028178,2]
[322114492,1712795444404,-398.0,0.00028178,2]
[322114493,1712795444414,-3039.0,0.00028178,2]
[322114494,1712795444423,-1635.0,0.00028178,2]
[322114495,1712795444434,-2437.0,0.00028178,2]
[322114496,1712795444444,-442.0,0.00028178,2]
[322114497,1712795444453,-214.0,0.00028178,2]
[322114498,1712795444462,-354.0,0.00028178,2]
[322114499,1712795444474,-5711.0,0.00028178,2]
[322114500,1712795444483,-4796.0,0.00028178,2]
[322114501,1712795444493,-1389.0,0.00028178,2]
[322114502,1712795444503,-966.0,0.00028178,2]
[322114503,1712795444514,-1313.0,0.00028178,2]
[322114504,1712795444523,-2288.0,0.00028178,2]
[322114505,1712795444533,-37570.0,0.00028178,2]
[322114506,1712795444542,-2463.0,0.00028178,2]
[322114507,1712795444552,-540.0,0.00028178,2]
[322114508,1712795444560,-1500.0,0.000282,2]
[322114509,1712795444569,-152.3788155,0.00028204,2]
[322114510,1712795444578,-150.0,0.00028249,2]
[322114511,1712795444587,-600.58,0.00028331,2]
[322114512,1712795444597,-150.0,0.000284,2]
[322114513,1712795444607,-157.041109,0.00028495,7]
[322114514,1712795444617,-173.894497,0.000285,2]
[322114515,1712795444626,-1228.0,0.00028544,2]
[322114516,1712795444635,-150.0,0.00028636,2]
[322114517,1712795444645,-1000.0,0.00028693,8]
[322114518,1712795444655,-152.3788155,0.00028871,2]
[322114519,1712795444664,-150.0,0.00028898,2]
[322114520,1712795444673,-150.0,0.000289,2]
[322114521,1712795444682,-1000.0,0.00028961,2]
[322114522,1712795444691,-155.39659709,0.00028964,2]
[322114523,1712795444701,-150.0,0.00028989,2]
[322114524,1712795444710,-157.041108,0.00028995,5]
[322114525,1712795444721,-6744.92204359,0.00029,2]
[322114526,1712795444730,-150.0,0.00029,2]
[322114527,1712795444740,-450.0,0.00029,3]
[322114528,1712795444749,-150.0,0.00029047,2]
[322114529,1712795444759,-6683.81639715,0.000292,2]
[322114530,1712795444768,-1780.89025,0.0002936,2]
[322114531,1712795444777,-150.0,0.00029381,2]
[322114532,1712795444786,-150.0,0.000294,2]
[322114533,1712795444796,-1000.0,0.000294,2]
[322114534,1712795444806,-157.041109,0.00029495,7]
[322114535,1712795444815,-441.77418907,0.000295,3]
[322114536,1712795444824,-150.0,0.000295,2]
[322114537,1712795444834,-152.3788155,0.00029538,2]
[322114538,1712795444843,-150.0,0.00029539,2]
[322114539,1712795444855,-200.0,0.0002966,2]
[322114540,1712795444865,-1000.0,0.0002966,8]
[322114541,1712795444874,-200.0,0.0002966,7]
[322114542,1712795444883,-150.0,0.00029708,2]
[322114543,1712795444894,-150.0,0.00029714,2]
[322114544,1712795444903,-162.07,0.00029756,2]
[322114545,1712795444912,-348.87,0.00029756,2]
[322114546,1712795444922,-103799.73555393,0.00029798,2]
[322114547,1712795444932,-176.09974935,0.000298,2]
[322114548,1712795444942,-1624.489606,0.000298,2]
[322114549,1712795444951,-13500.0,0.000298,10]
[322114550,1712795444960,-155.39659709,0.000298,2]
[322114551,1712795444970,-3620.54915482,0.000298,16]
[322114552,1712795444979,-1037.42145202,0.000298,2]
[322114553,1712795444988,-273.64656396,0.000298,2]
[322114554,1712795444998,-1050.71134539,0.000298,2]
[322114555,1712795445007,-502.794254,0.0002988,3]
[322114556,1712795445016,-31459.1980068,0.00029897,2]
[322114557,1712795445026,-310.16513868,0.00029898,2]
[322114558,1712795445035,-175557.94942371,0.00029898,2]
[322114559,1712795445045,-155.47572406,0.00029899,2]
[322114560,1712795445054,-158.00138545,0.00029899,2]
[322114561,1712795445063,-155.0,0.00029899,2]
[322114562,1712795445072,-150.0,0.00029899,2]
[322114563,1712795445082,-683269.69626141,0.000299,2]
[322114564,1712795445091,-193940.01260813,0.000299,2]
[322114565,1712795445107,-627.54882203,0.000299,2]
[322114566,1712795445118,-4022.2204,0.000299,2]
[322114567,1712795445152,-375.0398826,0.000299,2]
[322114568,1712795445164,-3943.6158209,0.000299,2]
[322114569,1712795445232,-3188.5512098,0.000299,2]
[322114570,1712795446144,-221.38571085,0.00024689,10]
[322114571,1712795446155,-361.59819416,0.00024689,2]
[322114572,1712795446179,-133.84111026,0.00024689,2]
[322114573,1712795446190,-652.90351806,0.00024689,2]
[322114574,1712795446200,-1260.0,0.00025544,2]
[322114575,1712795446210,-1260.0,0.00028544,2]
[322114576,1712795446220,-179.07024958,0.000298,2]
[322114577,1712795446231,-25125.85246777,0.000299,2]
[322114588,1712795468486,1468.47901264,0.00017012,2]
[322114589,1712795470671,18347.28014808,0.00017012,2]
[322114590,1712795471117,319.09179837,0.00017012,2]
[322114591,1712795473786,323.20134664,0.00017012,2]
[322114592,1712795474090,1034.14826321,0.00017012,2]
[322114593,1712795474660,19633.18645277,0.00017012,2]
[322114594,1712795477543,179.26784372,0.00017012,2]
[322114596,1712795483071,318.76237391,0.00017012,2]
[322114598,1712795504411,1371.45451449,0.00017012,2]
[322114601,1712795735918,24937.0,0.0003,25]
[322114603,1712796333780,48000.0,0.0003,25]
[322114605,1712796408339,48000.0,0.0003,25]
[322114606,1712796410106,10191.0,0.00032835,120]
[322114642,1712796632174,-200.06295245,0.00020484,2]
[322114643,1712796632185,-652.90351806,0.00020485,2]
[322114644,1712796632195,-507.94307949,0.00020485,2]
[322114645,1712796632306,-18952.12099202,0.00020485,2]
[322114646,1712796632316,-4942.44215569,0.00020486,2]
[322114647,1712796632326,-489.86,0.00020492,2]
[322114648,1712796632335,-11480.96895504,0.00020693,2]
[322114649,1712796632357,-8519.03104496,0.00020693,2]
[322114650,1712796632367,-5578.56027261,0.00020699,2]
[322114651,1712796632402,-4050.20192573,0.00020699,2]
[322114668,1712796639246,-942.58094751,0.00020699,2]
[322114669,1712796639260,-24672.99085415,0.00020699,2]
[322114670,1712796639270,-714.96210186,0.00021,2]
[322114671,1712796639280,-150.0,0.00021479,2]
[322114672,1712796639289,-3671.0,0.000215,2]
[322114673,1712796639298,-175.8,0.00021844,2]
[322114674,1712796639307,-2356.03750157,0.00021998,2]
[322114675,1712796639317,-147.59047351,0.00021999,2]
[322114676,1712796639330,-15368.29931371,0.00021999,2]
[322114677,1712796639341,-562.65039884,0.00022,2]
[322114678,1712796639350,-783.68958544,0.00022,2]
[322114679,1712796639360,-168.7,0.00022255,2]
[322114680,1712796639369,-180.0,0.00022301,2]
[322114681,1712796639378,-1000.0,0.00022361,2]
[322114682,1712796639388,-250.0,0.00022403,2]
[322114683,1712796639398,-250.0,0.0002241,2]
[322114684,1712796639407,-1759.23,0.00022601,2]
[322114685,1712796639416,-489.86,0.00022756,2]
[322114686,1712796639425,-250.0,0.00022822,2]
[322114687,1712796639436,-8823.77,0.00022913,2]
[322114688,1712796639446,-155.0,0.00023,2]
[322114689,1712796639455,-307.07035254,0.00023,2]
[322114690,1712796639465,-2891.03285688,0.00023935,2]
[322114691,1712796639475,-151.9873746,0.00023935,2]
[322114692,1712796639484,-14415.78059192,0.00023935,2]
[322114693,1712796639493,-224.62727988,0.00024,2]
[322114694,1712796639503,-282.16237035,0.00024033,2]
[322114695,1712796639512,-73472.36992481,0.00024033,2]
[322114696,1712796639525,-1272.238903,0.00024033,2]
[322114697,1712796639535,-10000.0,0.00024035,2]
[322114698,1712796639545,-151.98737444,0.00024244,2]
[322114699,1712796639554,-151.98737444,0.00024552,2]
[322114700,1712796639563,-500.0,0.00024658,2]
[322114701,1712796639571,-155.0,0.00024688,2]
[322114702,1712796639581,-129572.50726438,0.0002469,5]
[322114704,1712796640141,-208.81131443,0.000219,2]
[322114705,1712796640151,-19516.64969757,0.0002469,5]
[322114706,1712796640161,-2223.73711434,0.000248,2]
[322114707,1712796640170,-151.98737444,0.00024861,2]
[322114708,1712796640183,-335.49971668,0.00024922,2]
[322114709,1712796640192,-2603.52703539,0.00025,2]
[322114710,1712796640201,-155.0,0.00025,2]
[322114711,1712796640211,-489.86,0.00025019,2]
[322114712,1712796640220,-1000.0,0.00025157,2]
[322114713,1712796640231,-189.122,0.00025163,2]
[322114714,1712796640240,-151.98737444,0.0002517,2]
[322114715,1712796640252,-1759.23,0.00025341,2]
[322114716,1712796640262,-150.0,0.000254,2]
[322114717,1712796640272,-151.98737444,0.00025478,2]
[322114718,1712796640282,-151.98737444,0.00025787,2]
[322114719,1712796640489,-150.0,0.000259,2]
[322114720,1712796640503,-1700.0,0.000259,9]
[322114721,1712796640512,-320.7221868,0.00025902,2]
[322114722,1712796640522,-404.74792565,0.00025988,2]
[322114723,1712796640532,-495997.08847674,0.00026,2]
[322114724,1712796640542,-248.57026579,0.00026002,2]
[322114725,1712796640551,-681.099,0.00026068,2]
[322114726,1712796640564,-1733.686,0.00026068,2]
[322114727,1712796640574,-1228.0,0.00026068,2]
[322114728,1712796640584,-1228.0,0.00026068,2]
[322114729,1712796640593,-531.586,0.00026068,2]
[322114730,1712796640602,-806.0,0.00026068,2]
[322114731,1712796640612,-169.134,0.00026068,2]
[322114732,1712796640621,-1945.0,0.00026068,2]
[322114733,1712796640631,-607.0,0.00026068,2]
[322114734,1712796640640,-398.0,0.00026068,2]
[322114735,1712796640650,-3039.0,0.00026068,2]
[322114736,1712796640659,-1140.0,0.00026068,2]
[322114737,1712796640669,-1470.0,0.00026068,2]
[322114738,1712796640678,-1635.0,0.00026068,2]
[322114739,1712796640688,-2437.0,0.00026068,2]
[322114740,1712796640697,-214.0,0.00026068,2]
[322114741,1712796640707,-442.0,0.00026068,2]
[322114742,1712796640716,-354.0,0.00026068,2]
[322114743,1712796640726,-37570.0,0.00026068,2]
[322114744,1712796640735,-160.678,0.00026068,2]
[322114745,1712796640745,-250.0,0.00026068,2]
[322114746,1712796640755,-245.942,0.00026068,2]
[322114747,1712796640764,-151.0,0.00026068,2]
[322114748,1712796640773,-2459.0,0.00026068,2]
[322114749,1712796640783,-4796.0,0.00026068,2]
[322114750,1712796640793,-151.625,0.00026068,2]
[322114751,1712796640802,-267.982,0.00026068,2]
[322114752,1712796640810,-256.0,0.00026068,2]
[322114753,1712796640819,-1313.0,0.00026068,2]
[322114754,1712796640829,-4302.087,0.00026068,2]
[322114755,1712796640839,-265.539,0.00026068,2]
[322114756,1712796640848,-1052.0,0.00026068,2]
[322114757,1712796640857,-266.79,0.00026068,2]
[322114758,1712796640866,-155.615,0.00026068,2]
[322114759,1712796640875,-250.0,0.00026068,2]
[322114760,1712796640884,-158.37,0.00026068,2]
[322114761,1712796640893,-277.066,0.00026068,2]
[322114762,1712796640903,-151.98737444,0.00026096,2]
[322114763,1712796640912,-167.0,0.00026177,2]
[322114764,1712796640922,-150.0,0.000264,2]
[322114765,1712796640932,-151.98737444,0.00026404,2]
[322114766,1712796640940,-175.8,0.00026479,2]
[322114767,1712796640949,-2891.03285682,0.00026696,2]
[322114768,1712796640959,-14415.78059184,0.00026696,2]
[322114769,1712796640969,-151.98737444,0.00026713,2]
[322114770,1712796640978,-500.0,0.00026759,2]
[322114771,1712796640988,-150.0,0.000269,2]
[322114772,1712796640997,-155.44366503,0.00026908,2]
[322114773,1712796641008,-151.98737444,0.00027022,2]
[322114774,1712796641017,-489.86,0.00027283,2]
[322114775,1712796641026,-151.98737444,0.00027331,2]
[322114776,1712796641036,-800.0,0.0002737,2]
[322114777,1712796641046,-334.28,0.00027397,2]
[322114778,1712796641056,-156.14,0.00027397,2]
[322114779,1712796641065,-150.0,0.000274,2]
[322114780,1712796641074,-151.98737444,0.00027639,2]
[322114781,1712796641084,-200.0,0.00027726,2]
[322114782,1712796641094,-1000.0,0.00027726,8]
[322114783,1712796641104,-500.0,0.00027726,2]
[322114784,1712796641113,-150.0,0.000279,2]
[322114785,1712796641123,-151.98737444,0.00027948,2]
[322114786,1712796641132,-1000.0,0.00027952,2]
[322114787,1712796641142,-1759.23,0.00028081,2]
[322114788,1712796641151,-151.98737444,0.00028257,2]
[322114789,1712796641161,-150.0,0.000284,2]
[322114790,1712796641170,-1000.0,0.000284,2]
[322114791,1712796641183,-151.98737444,0.00028565,2]
[322114792,1712796641193,-500.0,0.00028693,2]
[322114793,1712796641202,-151.98737444,0.00028874,2]
[322114794,1712796641211,-150.0,0.000289,2]
[322114795,1712796641222,-152.72619968,0.00028968,2]
[322114796,1712796641231,-186.06693081,0.00028968,2]
[322114797,1712796641240,-6744.92204359,0.00029,2]
[322114798,1712796641249,-1065.638,0.00029068,2]
[322114799,1712796641259,-1725.702,0.00029068,2]
[322114800,1712796641269,-322.556,0.00029068,2]
[322114801,1712796641279,-368.066,0.00029068,2]
[322114802,1712796641291,-487.052,0.00029068,2]
[322114803,1712796641300,-438.0,0.00029068,2]
[322114804,1712796641310,-1449.106,0.00029068,2]
[322114805,1712796641319,-1635.0,0.00029068,2]
[322114806,1712796641329,-1346.957,0.00029068,2]
[322114807,1712796641338,-214.0,0.00029068,2]
[322114808,1712796641348,-442.0,0.00029068,2]
[322114809,1712796641357,-354.0,0.00029068,2]
[322114810,1712796641367,-6685.816,0.00029068,2]
[322114811,1712796641376,-150.0,0.00029068,2]
[322114812,1712796641385,-150.0,0.00029068,2]
[322114813,1712796641395,-3168.0,0.00029068,2]
[322114814,1712796641404,-150.0,0.00029068,2]
[322114815,1712796641413,-1052.0,0.00029068,2]
[322114816,1712796641422,-151.98737444,0.00029183,2]
[322114817,1712796641432,-320.7221868,0.0002933,2]
[322114818,1712796641441,-150.0,0.000294,2]
[322114819,1712796641450,-1000.0,0.000294,2]
[322114820,1712796641460,-2891.03285682,0.00029456,2]
[322114821,1712796641469,-14415.78059184,0.00029456,2]
[322114822,1712796641478,-151.98737444,0.00029491,2]
[322114823,1712796641488,-441.77418907,0.000295,3]
[322114824,1712796641497,-152.72619942,0.00029538,2]
[322114825,1712796641506,-489.86,0.00029547,2]
[322114826,1712796641515,-738.22285,0.000296,2]
[322114827,1712796641524,-158.89767585,0.00029601,2]
[322114828,1712796641533,-150.0,0.00029657,2]
[322114829,1712796641544,-324.45,0.00029657,2]
[322114830,1712796641553,-150.0,0.00029657,2]
[322114831,1712796641562,-150.0,0.00029657,2]
[322114832,1712796641571,-150.0,0.00029657,2]
[322114833,1712796641580,-267.64,0.00029657,2]
[322114834,1712796641589,-349.36,0.00029657,2]
[322114835,1712796641598,-150.0,0.00029657,2]
[322114836,1712796641607,-520.51,0.00029657,2]
[322114837,1712796641617,-150.0,0.00029657,2]
[322114838,1712796641626,-520.51,0.00029657,2]
[322114839,1712796641635,-150.0,0.00029657,2]
[322114840,1712796641644,-150.0,0.00029657,2]
[322114841,1712796641653,-150.0,0.00029657,2]
[322114842,1712796641662,-150.0,0.00029657,2]
[322114843,1712796641671,-150.0,0.00029657,2]
[322114844,1712796641680,-150.0,0.00029657,2]
[322114845,1712796641689,-349.36,0.00029657,2]
[322114846,1712796641698,-162.27,0.00029657,2]
[322114847,1712796641707,-150.0,0.00029657,2]
[322114848,1712796641717,-520.51,0.00029657,2]
[322114849,1712796641728,-150.0,0.00029657,2]
[322114850,1712796641738,-150.0,0.00029657,2]
[322114851,1712796641747,-349.36,0.00029657,2]
[322114852,1712796641758,-150.0,0.00029657,2]
[322114853,1712796641768,-162.27,0.00029657,2]
[322114854,1712796641777,-150.0,0.00029657,2]
[322114855,1712796641786,-150.0,0.00029657,2]
[322114856,1712796641797,-150.0,0.00029657,2]
[322114857,1712796641806,-519.12,0.00029657,2]
[322114858,1712796641815,-150.0,0.00029657,2]
[322114859,1712796641824,-150.0,0.00029657,2]
[322114860,1712796641833,-162.27,0.00029657,2]
[322114861,1712796641842,-528.58,0.00029657,2]
[322114862,1712796641852,-150.0,0.00029657,2]
[322114863,1712796641862,-150.0,0.00029657,2]
[322114864,1712796641870,-417.92,0.00029657,2]
[322114865,1712796641879,-417.92,0.00029657,2]